[Event "Early-Titled-Tuesday-Blitz-June-18-2024"]
[Site "Chess.com"]
[Date "2024.06.18"]
[Round "5"]
[White "AnishOnYoutube"]
[Black "artin10862"]
[Result "1-0"]
[WhiteElo "3071"]
[BlackElo "2933"]
[TimeControl "180+1"]
[EndTime "9:00:39 PDT"]
[Termination "AnishOnYoutube won on time"]

1. Nf3 {[%clk 0:03:00.9]} 1... d5 {[%clk 0:02:54.3]} 2. d4 {[%clk 0:03:01.1]}
2... Nf6 {[%clk 0:02:49.9]} 3. c4 {[%clk 0:03:01.4]} 3... e6 {[%clk 0:02:49.9]}
4. g3 {[%clk 0:03:01.3]} 4... dxc4 {[%clk 0:02:44.2]} 5. Bg2 {[%clk 0:03:01.4]}
5... Nc6 {[%clk 0:02:42.4]} 6. O-O {[%clk 0:02:45.6]} 6... Rb8 {[%clk
0:02:40.4]} 7. Be3 {[%clk 0:02:45.8]} 7... b5 {[%clk 0:02:33.8]} 8. a4 {[%clk
0:02:42]} 8... a6 {[%clk 0:02:28.3]} 9. axb5 {[%clk 0:02:39.9]} 9... axb5 {[%clk
0:02:29.2]} 10. b3 {[%clk 0:02:06]} 10... Nd5 {[%clk 0:02:17.4]} 11. Bg5 {[%clk
0:02:05.5]} 11... Be7 {[%clk 0:02:07.8]} 12. Bxe7 {[%clk 0:02:05.7]} 12... Qxe7
{[%clk 0:02:07.9]} 13. bxc4 {[%clk 0:02:05.9]} 13... bxc4 {[%clk 0:02:07.7]} 14.
Qc1 {[%clk 0:02:06.2]} 14... Qb4 {[%clk 0:01:55.1]} 15. Nbd2 {[%clk 0:02:00.6]}
15... c3 {[%clk 0:01:54.6]} 16. Rb1 {[%clk 0:01:55.5]} 16... Qa5 {[%clk
0:01:32]} 17. Rxb8 {[%clk 0:01:49.4]} 17... Nxb8 {[%clk 0:01:31.8]} 18. Nc4
{[%clk 0:01:31.3]} 18... Qa6 {[%clk 0:01:10.9]} 19. Ne3 {[%clk 0:01:28.4]} 19...
O-O {[%clk 0:01:04.1]} 20. Nxd5 {[%clk 0:01:19.1]} 20... exd5 {[%clk 0:01:04.1]}
21. Qxc3 {[%clk 0:01:02.8]} 21... Qxe2 {[%clk 0:01:03.8]} 22. Qxc7 {[%clk
0:01:00.9]} 22... Na6 {[%clk 0:01:03.6]} 23. Qa5 {[%clk 0:00:53.5]} 23... Qc4
{[%clk 0:00:53.5]} 24. Re1 {[%clk 0:00:21.3]} 24... Nb4 {[%clk 0:00:50.5]} 25.
Bf1 {[%clk 0:00:12.9]} 25... Qb3 {[%clk 0:00:38.6]} 26. Re3 {[%clk 0:00:09.8]}
26... Qb1 {[%clk 0:00:38.6]} 27. Nd2 {[%clk 0:00:03.3]} 27... Qb2 {[%clk
0:00:37.3]} 28. Rb3 {[%clk 0:00:03.7]} 28... Qxd2 {[%clk 0:00:35.5]} 29. Qxb4
{[%clk 0:00:04.5]} 29... Qd1 {[%clk 0:00:31.7]} 30. Rb1 {[%clk 0:00:04]} 30...
Qf3 {[%clk 0:00:32.3]} 31. Rb3 {[%clk 0:00:03.6]} 31... Qd1 {[%clk 0:00:31.1]}
32. Rb1 {[%clk 0:00:03.9]} 32... Qf3 {[%clk 0:00:30.8]} 33. Bg2 {[%clk 0:00:04]}
33... Qf5 {[%clk 0:00:26.9]} 34. Re1 {[%clk 0:00:04.6]} 34... Be6 {[%clk
0:00:27.1]} 35. h4 {[%clk 0:00:05]} 35... Rc8 {[%clk 0:00:25.4]} 36. Qd2 {[%clk
0:00:05.3]} 36... h6 {[%clk 0:00:25]} 37. Qe3 {[%clk 0:00:05.7]} 37... Rc2
{[%clk 0:00:22.3]} 38. Bf1 {[%clk 0:00:06.3]} 38... Qf6 {[%clk 0:00:20.9]} 39.
Rb1 {[%clk 0:00:05.6]} 39... Rc8 {[%clk 0:00:21.1]} 40. Rb6 {[%clk 0:00:05.4]}
40... Qd8 {[%clk 0:00:19.8]} 41. Rb7 {[%clk 0:00:05.7]} 41... Rb8 {[%clk
0:00:18.9]} 42. Rxb8 {[%clk 0:00:05.9]} 42... Qxb8 {[%clk 0:00:19.5]} 43. Qc3
{[%clk 0:00:06.8]} 43... Qb1 {[%clk 0:00:19.2]} 44. Qe3 {[%clk 0:00:06.7]} 44...
Qe4 {[%clk 0:00:18.6]} 45. Qxe4 {[%clk 0:00:06.8]} 45... dxe4 {[%clk 0:00:19.5]}
46. Bb5 {[%clk 0:00:06.9]} 46... Bd5 {[%clk 0:00:19.5]} 47. Kf1 {[%clk
0:00:07.5]} 47... g5 {[%clk 0:00:15.8]} 48. hxg5 {[%clk 0:00:07.5]} 48... hxg5
{[%clk 0:00:16.7]} 49. Ke2 {[%clk 0:00:08.3]} 49... f5 {[%clk 0:00:16.3]} 50.
Ke3 {[%clk 0:00:05.1]} 50... Kf7 {[%clk 0:00:15.8]} 51. Be2 {[%clk 0:00:05.4]}
51... Kf6 {[%clk 0:00:13.2]} 52. Bd1 {[%clk 0:00:05.9]} 52... Bc4 {[%clk
0:00:13.2]} 53. g4 {[%clk 0:00:05.6]} 53... fxg4 {[%clk 0:00:09.2]} 54. Bxg4
{[%clk 0:00:06]} 54... Bd5 {[%clk 0:00:09.9]} 55. Bh3 {[%clk 0:00:06.6]} 55...
Bc6 {[%clk 0:00:09.9]} 56. Bc8 {[%clk 0:00:07.1]} 56... Bd5 {[%clk 0:00:09.7]}
57. Bd7 {[%clk 0:00:07.7]} 57... Bb7 {[%clk 0:00:09.5]} 58. Ba4 {[%clk
0:00:07.7]} 58... Bd5 {[%clk 0:00:09.3]} 59. Bc2 {[%clk 0:00:08.2]} 59... Be6
{[%clk 0:00:07.1]} 60. Bxe4 {[%clk 0:00:08.7]} 60... Bd7 {[%clk 0:00:07.6]} 61.
Kd3 {[%clk 0:00:09.2]} 61... Ke7 {[%clk 0:00:07.9]} 62. Bd5 {[%clk 0:00:08.6]}
62... Kd6 {[%clk 0:00:08.1]} 63. Ke4 {[%clk 0:00:08.4]} 63... Bh3 {[%clk
0:00:08]} 64. Bc4 {[%clk 0:00:08.2]} 64... Bd7 {[%clk 0:00:07.9]} 65. Kf3 {[%clk
0:00:08.5]} 65... Ke7 {[%clk 0:00:08]} 66. Ke3 {[%clk 0:00:08.4]} 66... Kd6
{[%clk 0:00:07.6]} 67. Be2 {[%clk 0:00:08.8]} 67... Kd5 {[%clk 0:00:05.5]} 68.
Bf3+ {[%clk 0:00:09.2]} 68... Kd6 {[%clk 0:00:06.1]} 69. Be4 {[%clk 0:00:09.8]}
69... Be6 {[%clk 0:00:06]} 70. Kf3 {[%clk 0:00:10.3]} 70... Bd7 {[%clk
0:00:06.4]} 71. Kg3 {[%clk 0:00:10.8]} 71... Ke7 {[%clk 0:00:06.9]} 72. Bg2
{[%clk 0:00:10.6]} 72... Kf6 {[%clk 0:00:07.4]} 73. Bh3 {[%clk 0:00:11]} 73...
Bc6 {[%clk 0:00:07.3]} 74. Bc8 {[%clk 0:00:11.1]} 74... Bd5 {[%clk 0:00:07]} 75.
Kg4 {[%clk 0:00:11.3]} 75... Bb3 {[%clk 0:00:05.7]} 76. Bb7 {[%clk 0:00:10.7]}
76... Be6+ {[%clk 0:00:03.4]} 77. Kf3 {[%clk 0:00:10.6]} 77... Bd7 {[%clk
0:00:03.6]} 78. Ke4 {[%clk 0:00:10.6]} 78... Ke6 {[%clk 0:00:04.1]} 79. Bd5+
{[%clk 0:00:10.3]} 79... Kf6 {[%clk 0:00:02.9]} 80. Bb3 {[%clk 0:00:09.5]} 80...
Bc6+ {[%clk 0:00:03.3]} 81. Kd3 {[%clk 0:00:09.9]} 81... Bd7 {[%clk 0:00:03.2]}
82. Kc4 {[%clk 0:00:09.8]} 82... Kf5 {[%clk 0:00:03.8]} 83. Kc5 {[%clk
0:00:08.7]} 83... Kf4 {[%clk 0:00:04.4]} 84. Bd5 {[%clk 0:00:09.4]} 84... Bf5
{[%clk 0:00:04.1]} 85. Bc6 {[%clk 0:00:09.1]} 85... Bc8 {[%clk 0:00:03.1]} 86.
Bg2 {[%clk 0:00:07.8]} 86... Bd7 {[%clk 0:00:02.5]} 87. d5 {[%clk 0:00:08]}
87... Ke5 {[%clk 0:00:02.8]} 88. d6 {[%clk 0:00:08.3]} 88... g4 {[%clk
0:00:01.4]} 89. Bc6 {[%clk 0:00:08.5]} 89... Be6 {[%clk 0:00:01.8]} 90. Bg2
{[%clk 0:00:04.9]} 90... Bd7 {[%clk 0:00:02.1]} 91. Bd5 {[%clk 0:00:05.3]} 91...
Bf5 {[%clk 0:00:02]} 92. Kc6 {[%clk 0:00:03.3]} 92... Bc8 {[%clk 0:00:01.8]} 93.
Bg2 {[%clk 0:00:03.6]} 93... Be6 {[%clk 0:00:01.6]} 94. Kc7 {[%clk 0:00:02.7]}
94... Bf5 {[%clk 0:00:01.7]} 95. Bb7 {[%clk 0:00:02.9]} 95... Kf4 {[%clk
0:00:01.6]} 96. Bc8 {[%clk 0:00:03.1]} 1-0

[Event "Early-Titled-Tuesday-Blitz-June-18-2024"]
[Site "Chess.com"]
[Date "2024.06.18"]
[Round "5"]
[White "CSB7"]
[Black "wonderfultime"]
[Result "1-0"]
[WhiteElo "2754"]
[BlackElo "3036"]
[TimeControl "180+1"]
[EndTime "9:00:42 PDT"]
[Termination "CSB7 won by resignation"]

1. d4 {[%clk 0:03:00.9]} 1... d5 {[%clk 0:02:56.1]} 2. c4 {[%clk 0:02:59.1]}
2... c6 {[%clk 0:02:56.5]} 3. Nf3 {[%clk 0:02:53.6]} 3... Nf6 {[%clk 0:02:56.5]}
4. Nc3 {[%clk 0:02:51.9]} 4... a6 {[%clk 0:02:56.9]} 5. cxd5 {[%clk 0:02:46.9]}
5... cxd5 {[%clk 0:02:57]} 6. Bf4 {[%clk 0:02:47.4]} 6... Nc6 {[%clk 0:02:57.3]}
7. Rc1 {[%clk 0:02:47.8]} 7... e6 {[%clk 0:02:50.3]} 8. e3 {[%clk 0:02:46.2]}
8... Bd6 {[%clk 0:02:50]} 9. Bg3 {[%clk 0:02:46]} 9... O-O {[%clk 0:02:50]} 10.
Bd3 {[%clk 0:02:43.7]} 10... h6 {[%clk 0:02:37.8]} 11. O-O {[%clk 0:02:38.8]}
11... Bxg3 {[%clk 0:02:37.9]} 12. hxg3 {[%clk 0:02:39.7]} 12... Qd6 {[%clk
0:02:33.4]} 13. Na4 {[%clk 0:02:23.1]} 13... e5 {[%clk 0:02:23.8]} 14. dxe5
{[%clk 0:02:03.1]} 14... Nxe5 {[%clk 0:02:22.5]} 15. Be2 {[%clk 0:01:52.4]}
15... Bf5 {[%clk 0:02:14.6]} 16. Qd4 {[%clk 0:01:29.6]} 16... Rfe8 {[%clk
0:02:09]} 17. Qc5 {[%clk 0:01:14.3]} 17... Nxf3+ {[%clk 0:01:53.1]} 18. Bxf3
{[%clk 0:01:15.2]} 18... Qe6 {[%clk 0:01:53.1]} 19. Nb6 {[%clk 0:01:07.4]} 19...
Rad8 {[%clk 0:01:51.8]} 20. Rfd1 {[%clk 0:01:04.5]} 20... Be4 {[%clk 0:01:51]}
21. Qd4 {[%clk 0:00:51]} 21... Qf5 {[%clk 0:01:43.5]} 22. Be2 {[%clk 0:00:45.8]}
22... h5 {[%clk 0:01:39.3]} 23. f3 {[%clk 0:00:32.6]} 23... Qg5 {[%clk
0:01:39.4]} 24. fxe4 {[%clk 0:00:17.6]} 24... Rxe4 {[%clk 0:01:40.3]} 25. Qd2
{[%clk 0:00:18.1]} 25... Qxg3 {[%clk 0:01:17.3]} 26. Bf3 {[%clk 0:00:17.1]}
26... Rh4 {[%clk 0:01:18]} 27. Nxd5 {[%clk 0:00:05.4]} 27... Nxd5 {[%clk
0:00:08.4]} 28. Bxd5 {[%clk 0:00:06.3]} 28... Re8 {[%clk 0:00:07.8]} 29. Bxf7+
{[%clk 0:00:02.9]} 29... Kxf7 {[%clk 0:00:07.6]} 30. Qd7+ {[%clk 0:00:03.5]}
30... Kf6 {[%clk 0:00:03.1]} 31. Rf1+ {[%clk 0:00:03.6]} 31... Kg6 {[%clk
0:00:02.4]} 32. Qxe8+ {[%clk 0:00:02.4]} 32... Kh6 {[%clk 0:00:02.8]} 33. Qe6+
{[%clk 0:00:02.2]} 33... Kh7 {[%clk 0:00:02.9]} 34. Qf5+ {[%clk 0:00:02.5]}
34... Kh6 {[%clk 0:00:03.6]} 35. Qe6+ {[%clk 0:00:02.1]} 35... Kh7 {[%clk
0:00:04.1]} 36. Qf5+ {[%clk 0:00:02.4]} 36... Kh6 {[%clk 0:00:04.7]} 37. Qf3
{[%clk 0:00:02.8]} 37... Qh2+ {[%clk 0:00:04.3]} 38. Kf2 {[%clk 0:00:03.2]}
38... Qe5 {[%clk 0:00:04.6]} 39. Ke2 {[%clk 0:00:03.3]} 39... Qxb2+ {[%clk
0:00:04.2]} 40. Kd1 {[%clk 0:00:04]} 40... Rg4 {[%clk 0:00:03.9]} 41. Qf2 {[%clk
0:00:02.4]} 41... Qb5 {[%clk 0:00:03.9]} 42. Qe2 {[%clk 0:00:02.2]} 42... Qa4+
{[%clk 0:00:03.8]} 43. Ke1 {[%clk 0:00:02.4]} 43... Qa5+ {[%clk 0:00:02.9]} 44.
Qd2 {[%clk 0:00:02]} 44... Qe5 {[%clk 0:00:02.7]} 45. Rf2 {[%clk 0:00:01.3]}
45... Re4 {[%clk 0:00:02.6]} 46. Kf1 {[%clk 0:00:01.6]} 46... Rh4 {[%clk
0:00:02.5]} 47. Ke1 {[%clk 0:00:01.3]} 47... Qb5 {[%clk 0:00:02.2]} 48. Rf1
{[%clk 0:00:01.1]} 48... Re4 {[%clk 0:00:02.4]} 49. Rf2 {[%clk 0:00:01.1]} 49...
Rh4 {[%clk 0:00:02.6]} 50. Rf1 {[%clk 0:00:02]} 50... Qe5 {[%clk 0:00:02.4]} 51.
Rf2 {[%clk 0:00:02.5]} 51... Rh1+ {[%clk 0:00:02.2]} 52. Rf1 {[%clk 0:00:03.4]}
52... Rh4 {[%clk 0:00:02.6]} 53. e4+ {[%clk 0:00:03.6]} 53... Kh7 {[%clk
0:00:02.5]} 54. Qc2 {[%clk 0:00:04.2]} 54... Rxe4+ {[%clk 0:00:02.6]} 55. Kf2
{[%clk 0:00:04.9]} 55... Qd4+ {[%clk 0:00:02.8]} 56. Kg3 {[%clk 0:00:05.3]}
56... Qe5+ {[%clk 0:00:02.8]} 57. Kh3 {[%clk 0:00:05.2]} 57... g6 {[%clk
0:00:03.4]} 58. Rf3 {[%clk 0:00:04.9]} 58... Kh6 {[%clk 0:00:03.3]} 59. Qd2+
{[%clk 0:00:04.9]} 59... Kh7 {[%clk 0:00:02.7]} 60. Qd7+ {[%clk 0:00:04.6]}
60... Kh6 {[%clk 0:00:03.3]} 61. Qd2+ {[%clk 0:00:04.4]} 61... Kh7 {[%clk
0:00:03.4]} 62. Rcf1 {[%clk 0:00:04.4]} 62... Qe6+ {[%clk 0:00:02.5]} 63. Kh2
{[%clk 0:00:04.8]} 63... Qe5+ {[%clk 0:00:03.1]} 64. Kg1 {[%clk 0:00:04.4]}
64... Qd4+ {[%clk 0:00:01.1]} 65. Qxd4 {[%clk 0:00:04.2]} 65... Rxd4 {[%clk
0:00:02]} 66. Rf7+ {[%clk 0:00:04.6]} 66... Kh6 {[%clk 0:00:02.7]} 67. Rxb7
{[%clk 0:00:05.2]} 67... Ra4 {[%clk 0:00:03.5]} 68. Rf2 {[%clk 0:00:04.5]} 68...
h4 {[%clk 0:00:04.1]} 69. Rb6 {[%clk 0:00:04.9]} 69... Kh5 {[%clk 0:00:04.3]}
70. Rff6 {[%clk 0:00:03.8]} 70... g5 {[%clk 0:00:04.6]} 71. Rxa6 {[%clk
0:00:03.6]} 71... Rc4 {[%clk 0:00:04.3]} 72. Rf1 {[%clk 0:00:03.6]} 72... Rc2
{[%clk 0:00:04.5]} 73. a4 {[%clk 0:00:03.8]} 73... Kg4 {[%clk 0:00:04.6]} 74.
Rg6 {[%clk 0:00:04.2]} 74... Ra2 {[%clk 0:00:04.7]} 75. Ra6 {[%clk 0:00:01.8]}
75... Kg3 {[%clk 0:00:05.2]} 76. Rf3+ {[%clk 0:00:01.9]} 76... Kg4 {[%clk
0:00:06]} 77. Ra5 {[%clk 0:00:02.1]} 77... Ra1+ {[%clk 0:00:06]} 78. Kh2 {[%clk
0:00:02.5]} 78... Ra2 {[%clk 0:00:06.9]} 79. Ra6 {[%clk 0:00:02.5]} 79... Rb2
{[%clk 0:00:04.2]} 80. Ra8 {[%clk 0:00:02.8]} 80... Ra2 {[%clk 0:00:04.6]} 81.
a5 {[%clk 0:00:03.2]} 81... Kh5 {[%clk 0:00:04.4]} 82. a6 {[%clk 0:00:03.4]}
82... Kg4 {[%clk 0:00:04.5]} 83. a7 {[%clk 0:00:03.3]} 83... Ra1 {[%clk
0:00:05.2]} 84. Rb3 {[%clk 0:00:03.1]} 84... Kf4 {[%clk 0:00:04.5]} 85. Rb7
{[%clk 0:00:03.1]} 85... g4 {[%clk 0:00:04.9]} 86. Rf8+ {[%clk 0:00:03.2]} 86...
Kg5 {[%clk 0:00:05.6]} 87. Rg8+ {[%clk 0:00:02.2]} 87... Kf5 {[%clk 0:00:04.2]}
88. Rf7+ {[%clk 0:00:02.5]} 88... Ke6 {[%clk 0:00:04.9]} 89. Rfg7 {[%clk
0:00:02]} 89... Kf5 {[%clk 0:00:04.4]} 90. Rxg4 {[%clk 0:00:01.4]} 90... Rxa7
{[%clk 0:00:03.9]} 91. Rxh4 {[%clk 0:00:02.1]} 91... Ra2 {[%clk 0:00:04.1]} 92.
Rgg4 {[%clk 0:00:02.5]} 92... Kf6 {[%clk 0:00:04.5]} 93. Rf4+ {[%clk 0:00:02.9]}
93... Kg5 {[%clk 0:00:05.2]} 94. Rhg4+ {[%clk 0:00:03.4]} 94... Kh5 {[%clk
0:00:05.5]} 95. Kh3 {[%clk 0:00:03.6]} 95... Ra1 {[%clk 0:00:04.2]} 96. Rf5+
{[%clk 0:00:03.4]} 96... Kh6 {[%clk 0:00:04.9]} 97. Rh4+ {[%clk 0:00:03.3]}
97... Kg6 {[%clk 0:00:05.4]} 98. Rff4 {[%clk 0:00:03.8]} 98... Ra3+ {[%clk
0:00:05.2]} 99. Kg4 {[%clk 0:00:03.3]} 99... Ra2 {[%clk 0:00:05.8]} 100. g3
{[%clk 0:00:03.6]} 100... Ra5 {[%clk 0:00:06.5]} 101. Rh1 {[%clk 0:00:03.1]}
101... Kg7 {[%clk 0:00:07]} 102. Re1 {[%clk 0:00:02.6]} 102... Ra7 {[%clk
0:00:07.1]} 103. Ref1 {[%clk 0:00:03]} 103... Kg6 {[%clk 0:00:07.4]} 104. Rf6+
{[%clk 0:00:03]} 104... Kg7 {[%clk 0:00:08.1]} 105. Kg5 {[%clk 0:00:03.6]}
105... Ra3 {[%clk 0:00:08]} 106. g4 {[%clk 0:00:03.3]} 106... Ra5+ {[%clk
0:00:07.2]} 107. R1f5 {[%clk 0:00:03.3]} 107... Ra8 {[%clk 0:00:07.5]} 108. Rf7+
{[%clk 0:00:03.2]} 108... Kh8 {[%clk 0:00:08.2]} 109. Kh6 {[%clk 0:00:02.8]}
109... Rb8 {[%clk 0:00:07.8]} 110. Rf8+ {[%clk 0:00:02.2]} 1-0

[Event "Early-Titled-Tuesday-Blitz-June-18-2024"]
[Site "Chess.com"]
[Date "2024.06.18"]
[Round "5"]
[White "mitrabhaa"]
[Black "carokannlover213"]
[Result "1/2-1/2"]
[WhiteElo "2959"]
[BlackElo "2695"]
[TimeControl "180+1"]
[EndTime "9:01:37 PDT"]
[Termination "Game drawn by agreement"]

1. Nf3 {[%clk 0:02:56.4]} 1... d5 {[%clk 0:02:58.2]} 2. c4 {[%clk 0:02:57.3]}
2... e6 {[%clk 0:02:54.7]} 3. e3 {[%clk 0:02:55.7]} 3... Nf6 {[%clk 0:02:52.5]}
4. Nc3 {[%clk 0:02:53.7]} 4... c5 {[%clk 0:02:49.5]} 5. cxd5 {[%clk 0:02:39.7]}
5... exd5 {[%clk 0:02:50.4]} 6. Bb5+ {[%clk 0:02:39.3]} 6... Nc6 {[%clk
0:02:48.4]} 7. d4 {[%clk 0:02:08.9]} 7... cxd4 {[%clk 0:02:49.3]} 8. exd4 {[%clk
0:02:07.7]} 8... Bd6 {[%clk 0:02:45.4]} 9. O-O {[%clk 0:02:02.6]} 9... O-O
{[%clk 0:02:45]} 10. Bg5 {[%clk 0:02:02.2]} 10... h6 {[%clk 0:02:41.2]} 11. Bh4
{[%clk 0:02:00.1]} 11... Bg4 {[%clk 0:02:29.6]} 12. Bxf6 {[%clk 0:01:45.4]}
12... Qxf6 {[%clk 0:02:16.9]} 13. Nxd5 {[%clk 0:01:44]} 13... Qf5 {[%clk
0:01:30.7]} 14. Bxc6 {[%clk 0:01:42.8]} 14... bxc6 {[%clk 0:01:30.3]} 15. Ne3
{[%clk 0:01:43.4]} 15... Qh5 {[%clk 0:01:04.9]} 16. Nxg4 {[%clk 0:01:25.2]}
16... Qxg4 {[%clk 0:01:05.8]} 17. h3 {[%clk 0:01:26.1]} 17... Qh5 {[%clk
0:01:02.6]} 18. Qc2 {[%clk 0:01:20.4]} 18... c5 {[%clk 0:01:00.2]} 19. Rad1
{[%clk 0:01:07.1]} 19... cxd4 {[%clk 0:01:00]} 20. Rxd4 {[%clk 0:01:06.3]} 20...
Be7 {[%clk 0:00:58.5]} 21. Rfd1 {[%clk 0:01:04.8]} 21... Qa5 {[%clk 0:00:57.3]}
22. b3 {[%clk 0:01:00.9]} 22... Bf6 {[%clk 0:00:54.9]} 23. Rd5 {[%clk
0:00:50.1]} 23... Qa3 {[%clk 0:00:50.1]} 24. Rc5 {[%clk 0:00:44.3]} 24... Rfe8
{[%clk 0:00:47.2]} 25. Rc4 {[%clk 0:00:43.7]} 25... Qa5 {[%clk 0:00:43.7]} 26.
g3 {[%clk 0:00:38]} 26... Qb6 {[%clk 0:00:36.1]} 27. Kg2 {[%clk 0:00:37.8]}
27... Qa6 {[%clk 0:00:36.3]} 28. h4 {[%clk 0:00:36.8]} 28... Qb7 {[%clk
0:00:35.6]} 29. Rc7 {[%clk 0:00:35.6]} 29... Qa6 {[%clk 0:00:35.5]} 30. Rc6
{[%clk 0:00:31.5]} 30... Qb7 {[%clk 0:00:33.3]} 31. Rd5 {[%clk 0:00:26.9]} 31...
Rac8 {[%clk 0:00:29.5]} 32. Rdc5 {[%clk 0:00:26.9]} 32... Rcd8 {[%clk
0:00:29.2]} 33. Qc4 {[%clk 0:00:23.9]} 33... Rf8 {[%clk 0:00:24.2]} 34. Qg4
{[%clk 0:00:18.3]} 34... Qe7 {[%clk 0:00:20.4]} 35. Rc4 {[%clk 0:00:17.5]} 35...
Rd6 {[%clk 0:00:16.3]} 36. Rc7 {[%clk 0:00:16.4]} 36... Qe2 {[%clk 0:00:14.8]}
37. Rxa7 {[%clk 0:00:12.5]} 37... Rd1 {[%clk 0:00:14]} 38. Nh2 {[%clk
0:00:11.1]} 38... Qe1 {[%clk 0:00:14.4]} 39. Rd7 {[%clk 0:00:05.7]} 39... Ra1
{[%clk 0:00:13]} 40. Rf4 {[%clk 0:00:04.7]} 40... Be5 {[%clk 0:00:06.6]} 41. Re4
{[%clk 0:00:04.2]} 41... Qh1+ {[%clk 0:00:06.3]} 42. Kh3 {[%clk 0:00:04.2]}
42... f5 {[%clk 0:00:04.8]} 43. Qf3 {[%clk 0:00:04.2]} 43... Qxf3 {[%clk
0:00:04.4]} 44. Nxf3 {[%clk 0:00:05.1]} 44... fxe4 {[%clk 0:00:04.9]} 45. Nxe5
{[%clk 0:00:05.8]} 45... Rxa2 {[%clk 0:00:05.4]} 46. Ng4 {[%clk 0:00:04.1]}
46... Rb2 {[%clk 0:00:05.8]} 47. Rb7 {[%clk 0:00:03.8]} 47... Rf3 {[%clk
0:00:06]} 48. h5 {[%clk 0:00:03.8]} 48... Rfxb3 {[%clk 0:00:05.3]} 49. Re7
{[%clk 0:00:04.4]} 49... Rb8 {[%clk 0:00:03.1]} 50. Rxe4 {[%clk 0:00:04.4]}
50... R2b5 {[%clk 0:00:03.7]} 51. Kh4 {[%clk 0:00:04.5]} 51... Rf5 {[%clk
0:00:04.1]} 52. f4 {[%clk 0:00:04.4]} 52... Rbb5 {[%clk 0:00:04.3]} 53. Ne5
{[%clk 0:00:04.7]} 53... Rb1 {[%clk 0:00:03.9]} 54. Kg4 {[%clk 0:00:05.2]} 54...
Rf8 {[%clk 0:00:03.5]} 55. Ra4 {[%clk 0:00:05.8]} 55... Re8 {[%clk 0:00:03.3]}
56. Ra7 {[%clk 0:00:06.1]} 56... Rbb8 {[%clk 0:00:03.2]} 57. Ng6 {[%clk
0:00:06.3]} 57... Rb6 {[%clk 0:00:03]} 58. Ne7+ {[%clk 0:00:06.1]} 58... Kh7
{[%clk 0:00:02.9]} 59. Nf5 {[%clk 0:00:06.8]} 59... Rg8 {[%clk 0:00:03.2]} 60.
Ne3 {[%clk 0:00:06.6]} 60... Rf6 {[%clk 0:00:03.3]} 61. Nd5 {[%clk 0:00:06.9]}
61... Rff8 {[%clk 0:00:03.6]} 62. Kh4 {[%clk 0:00:07]} 62... Rf5 {[%clk
0:00:02.8]} 63. Rd7 {[%clk 0:00:05.8]} 63... Rgf8 {[%clk 0:00:02.2]} 64. Ne3
{[%clk 0:00:05.1]} 64... R5f7 {[%clk 0:00:03.1]} 65. Rd5 {[%clk 0:00:05.4]}
65... Re7 {[%clk 0:00:02.7]} 66. Ng4 {[%clk 0:00:05.7]} 66... Re1 {[%clk
0:00:03]} 67. Ne5 {[%clk 0:00:06]} 67... Re8 {[%clk 0:00:02]} 68. Kg4 {[%clk
0:00:06]} 68... Re7 {[%clk 0:00:02.1]} 69. Ng6 {[%clk 0:00:05.7]} 69... Re8
{[%clk 0:00:02.6]} 70. Rd7 {[%clk 0:00:06.1]} 70... R1e6 {[%clk 0:00:03.1]} 71.
Ra7 {[%clk 0:00:05.8]} 71... Rxg6+ {[%clk 0:00:03.3]} 72. hxg6+ {[%clk
0:00:06.4]} 72... Kxg6 {[%clk 0:00:04.2]} 73. f5+ {[%clk 0:00:07.3]} 73... Kf6
{[%clk 0:00:04]} 74. Ra6+ {[%clk 0:00:07.9]} 74... Kf7 {[%clk 0:00:04.1]} 75.
Kh5 {[%clk 0:00:08.5]} 75... Re1 {[%clk 0:00:02.9]} 76. Ra7+ {[%clk 0:00:08.1]}
76... Kf6 {[%clk 0:00:03.5]} 77. Kg4 {[%clk 0:00:06.7]} 77... Re4+ {[%clk
0:00:03.9]} 78. Kf3 {[%clk 0:00:07.1]} 78... Re5 {[%clk 0:00:04.5]} 79. g4
{[%clk 0:00:07.4]} 79... Rb5 {[%clk 0:00:04.7]} 80. Ra6+ {[%clk 0:00:07]} 80...
Kf7 {[%clk 0:00:04.5]} 81. Kg3 {[%clk 0:00:07.6]} 81... Rb1 {[%clk 0:00:04.2]}
82. Rc6 {[%clk 0:00:07.1]} 82... Rg1+ {[%clk 0:00:04.5]} 83. Kf3 {[%clk
0:00:06.6]} 83... Rf1+ {[%clk 0:00:05.1]} 84. Kg2 {[%clk 0:00:07.1]} 84... Ra1
{[%clk 0:00:05.7]} 85. Kg3 {[%clk 0:00:07.6]} 85... Rg1+ {[%clk 0:00:05.9]} 86.
Kf3 {[%clk 0:00:07]} 86... Rf1+ {[%clk 0:00:06.5]} 87. Kg2 {[%clk 0:00:07.6]}
87... Ra1 {[%clk 0:00:07.2]} 88. Rc4 {[%clk 0:00:07.7]} 88... Ra3 {[%clk
0:00:07.4]} 89. Rc6 {[%clk 0:00:06.8]} 89... Rb3 {[%clk 0:00:07.6]} 90. Ra6
{[%clk 0:00:06.6]} 90... Rc3 {[%clk 0:00:08.1]} 91. Kf2 {[%clk 0:00:07]} 91...
Rd3 {[%clk 0:00:07.7]} 92. Rg6 {[%clk 0:00:07.6]} 92... Rh3 {[%clk 0:00:07.6]}
93. Kg2 {[%clk 0:00:07.5]} 93... Ra3 {[%clk 0:00:07]} 94. Ra6 {[%clk 0:00:08.1]}
94... Rd3 {[%clk 0:00:06.9]} 95. Ra1 {[%clk 0:00:07.7]} 95... Kf6 {[%clk
0:00:06.3]} 96. Ra6+ {[%clk 0:00:05.8]} 96... Kf7 {[%clk 0:00:05]} 97. Kf2
{[%clk 0:00:06.2]} 97... Rb3 {[%clk 0:00:05.1]} 98. Ra4 {[%clk 0:00:05.9]} 98...
Kf6 {[%clk 0:00:04.5]} 99. Ra7 {[%clk 0:00:05.5]} 99... h5 {[%clk 0:00:02.3]}
100. gxh5 {[%clk 0:00:04.9]} 100... Rh3 {[%clk 0:00:02.6]} 101. Ra6+ {[%clk
0:00:03.5]} 101... Kxf5 {[%clk 0:00:02.7]} 102. Rg6 {[%clk 0:00:04.2]} 102...
Rxh5 {[%clk 0:00:02.4]} 103. Rxg7 {[%clk 0:00:04.9]} 103... Kf6 {[%clk
0:00:03.1]} 104. Ra7 {[%clk 0:00:05.8]} 104... Rf5+ {[%clk 0:00:04]} 105. Ke3
{[%clk 0:00:06.4]} 105... Re5+ {[%clk 0:00:04.9]} 106. Kd4 {[%clk 0:00:07.1]}
106... Re6 {[%clk 0:00:05.6]} 107. Ra5 {[%clk 0:00:07.5]} 107... Ke7 {[%clk
0:00:04.9]} 108. Kd5 {[%clk 0:00:07.5]} 108... Rd6+ {[%clk 0:00:05.3]} 109. Kc5
{[%clk 0:00:08]} 109... Re6 {[%clk 0:00:06.2]} 110. Ra7+ {[%clk 0:00:08.4]}
110... Kf6 {[%clk 0:00:06.8]} 111. Ra2 {[%clk 0:00:09.3]} 111... Re5+ {[%clk
0:00:07.2]} 112. Kd6 {[%clk 0:00:09.9]} 112... Rf5 {[%clk 0:00:08.1]} 113. Rh2
{[%clk 0:00:09.3]} 113... Rg5 {[%clk 0:00:08.2]} 114. Rf2+ {[%clk 0:00:09.5]}
114... Rf5 {[%clk 0:00:08.6]} 115. Rh2 {[%clk 0:00:09.5]} 115... Rg5 {[%clk
0:00:09.5]} 116. Rh8 {[%clk 0:00:10]} 116... Rf5 {[%clk 0:00:10.4]} 117. Rf8+
{[%clk 0:00:10.5]} 117... Kg5 {[%clk 0:00:10.8]} 118. Rb8 {[%clk 0:00:11.3]}
118... Kf6 {[%clk 0:00:11.7]} 119. Rb3 {[%clk 0:00:10.8]} 119... Rg5 {[%clk
0:00:08.7]} 120. Rb1 {[%clk 0:00:09.6]} 120... Rf5 {[%clk 0:00:09.6]} 121. Rb8
{[%clk 0:00:09.4]} 121... Rg5 {[%clk 0:00:10.5]} 122. Rf8+ {[%clk 0:00:09.3]}
122... Kg7 {[%clk 0:00:11.1]} 123. Rf2 {[%clk 0:00:10]} 123... Rg3 {[%clk
0:00:10.9]} 124. Ke6 {[%clk 0:00:10]} 124... Re3+ {[%clk 0:00:10.7]} 125. Kf5
{[%clk 0:00:10.7]} 125... Kf7 {[%clk 0:00:10.7]} 126. Kf4 {[%clk 0:00:10.6]}
126... Re6 {[%clk 0:00:10.1]} 127. Rc2 {[%clk 0:00:10.4]} 1/2-1/2